fUST/lending_fUST_20240824
["ID","MTS","AMOUNT","RATE_DAILY","PERIOD"]
[335806452,1724497859906,-40000.0,0.00013598,2]
[335806453,1724497859917,-500.0,0.00013698,2]
[335806454,1724497859927,-3453.135393,0.00013699,2]
[335806455,1724497859937,-3453.135393,0.00013699,2]
[335806456,1724497859947,-18639.065,0.00013838,2]
[335806457,1724497859956,-112.22876583,0.00013972,2]
[335806458,1724497859966,-1040.786388,0.00013972,2]
[335806459,1724497859976,-1040.786388,0.00013972,2]
[335806460,1724497859985,-500.0,0.00013972,2]
[335806461,1724497859994,-500.0,0.00013972,2]
[335806462,1724497860004,-500.0,0.00013972,2]
[335806463,1724497860014,-1040.786388,0.00013972,2]
[335806464,1724497860025,-1040.786388,0.00013972,2]
[335806465,1724497860035,-500.0,0.00013972,2]
[335806466,1724497860045,-1040.786388,0.00013972,2]
[335806467,1724497860055,-503.18446818,0.00013972,2]
[335806468,1724497860064,-1040.786388,0.00013972,2]
[335806469,1724497860074,-500.0,0.00013972,2]
[335806470,1724497860083,-500.0,0.00013972,2]
[335806471,1724497860093,-500.0,0.00013972,2]
[335806472,1724497860102,-681.98,0.00013972,2]
[335806473,1724497860112,-850.58,0.00013972,2]
[335806474,1724497860121,-500.0,0.00013972,2]
[335806475,1724497860131,-935.64,0.00013972,2]
[335806476,1724497860140,-500.61120877,0.00013972,2]
[335806477,1724497860150,-500.0,0.00013972,2]
[335806478,1724497860159,-151.0,0.00013972,2]
[335806479,1724497860168,-151.0,0.00013972,2]
[335806480,1724497860178,-500.0,0.00013972,2]
[335806481,1724497860187,-151.0,0.00013972,2]
[335806482,1724497860197,-512.48,0.00013972,2]
[335806483,1724497860206,-502.33681626,0.00013972,2]
[335806484,1724497860216,-580.92,0.00013972,2]
[335806485,1724497860225,-1232.98,0.00013972,2]
[335806486,1724497860235,-500.0,0.00013972,2]
[335806487,1724497860245,-717.87,0.00013972,2]
[335806488,1724497860256,-500.0,0.00013972,2]
[335806489,1724497860265,-500.0,0.00013972,2]
[335806490,1724497860274,-500.0,0.00013972,2]
[335806491,1724497860283,-243.480297,0.00013972,2]
[335806492,1724497860292,-243.480297,0.00013972,2]
[335806493,1724497860301,-500.0,0.00013972,2]
[335806494,1724497860310,-243.480297,0.00013972,2]
[335806495,1724497860321,-1273.41,0.00013972,2]
[335806496,1724497860333,-500.886722,0.00013972,2]
[335806497,1724497860344,-500.0,0.00013972,2]
[335806498,1724497860354,-563.64,0.00013972,2]
[335806499,1724497860364,-949.33,0.00013972,2]
[335806500,1724497860375,-500.0,0.00013972,2]
[335806501,1724497860387,-500.0,0.00013972,2]
[335806502,1724497860397,-2020.85,0.00013972,2]
[335806503,1724497860408,-243.480297,0.00013972,2]
[335806504,1724497860418,-243.480297,0.00013972,2]
[335806505,1724497860429,-243.480297,0.00013972,2]
[335806506,1724497860439,-500.0,0.00013972,2]
[335806507,1724497860448,-151.0,0.00013972,2]
[335806508,1724497860457,-151.0,0.00013972,2]
[335806509,1724497860467,-6942.64,0.00013972,2]
[335806510,1724497860476,-151.0,0.00013972,2]
[335806511,1724497860486,-560.87,0.00013972,2]
[335806512,1724497860495,-280.166105,0.00013972,2]
[335806513,1724497860505,-280.166105,0.00013972,2]
[335806514,1724497860514,-280.166105,0.00013972,2]
[335806515,1724497860524,-728.33,0.00013972,2]
[335806516,1724497860534,-500.0,0.00013972,2]
[335806517,1724497860543,-280.166105,0.00013972,2]
[335806518,1724497860553,-280.166105,0.00013972,2]
[335806519,1724497860563,-280.166105,0.00013972,2]
[335806520,1724497860575,-1524.4,0.00013972,2]
[335806521,1724497860585,-500.0,0.00013972,2]
[335806522,1724497860593,-1244.75,0.00013972,2]
[335806523,1724497860602,-1631.11,0.00013972,2]
[335806524,1724497860611,-500.0,0.00013972,2]
[335806525,1724497860621,-10182.12,0.00013972,2]
[335806526,1724497860630,-151.0,0.00013972,2]
[335806527,1724497860639,-1032.86,0.00013972,2]
[335806528,1724497860649,-151.0,0.00013972,2]
[335806529,1724497860658,-1745.55,0.00013972,2]
[335806530,1724497860668,-151.0,0.00013972,2]
[335806531,1724497860677,-500.0,0.00013972,2]
[335806532,1724497860687,-1201.46,0.00013972,2]
[335806533,1724497860696,-1111.0,0.00013972,2]
[335806534,1724497860706,-550.94,0.00013972,2]
[335806535,1724497860715,-3592.176796,0.00013972,2]
[335806536,1724497860724,-3592.176796,0.00013972,2]
[335806537,1724497860735,-3592.176796,0.00013972,2]
[335806538,1724497860744,-500.0,0.00013972,2]
[335806539,1724497860754,-500.0,0.00013972,2]
[335806540,1724497860763,-500.0,0.00013972,2]
[335806541,1724497860773,-611.59,0.00013972,2]
[335806542,1724497860782,-3592.176796,0.00013972,2]
[335806543,1724497860791,-3592.176796,0.00013972,2]
[335806544,1724497860801,-3592.176796,0.00013972,2]
[335806545,1724497860811,-500.0,0.00013972,2]
[335806546,1724497860820,-12506.1,0.00013972,2]
[335806547,1724497860829,-965.359632,0.00013972,2]
[335806548,1724497860838,-965.359632,0.00013972,2]
[335806549,1724497860852,-965.359632,0.00013972,2]
[335806550,1724497860862,-2841.2,0.00013972,2]
[335806551,1724497860872,-500.0,0.00013972,2]
[335806552,1724497860882,-1262.17,0.00013972,2]
[335806553,1724497860894,-506.58545164,0.00013972,2]
[335806554,1724497860904,-965.359632,0.00013972,2]
[335806555,1724497860914,-1731.69,0.00013972,2]
[335806556,1724497860924,-965.359632,0.00013972,2]
[335806557,1724497860934,-965.359632,0.00013972,2]
[335806558,1724497860943,-500.0,0.00013972,2]
[335806559,1724497860953,-567.57,0.00013972,2]
[335806560,1724497860962,-500.0,0.00013972,2]
[335806561,1724497860972,-1964.25,0.00013972,2]
[335806562,1724497860983,-500.0,0.00013972,2]
[335806563,1724497861150,-1973.52,0.00013972,2]
[335806564,1724497861161,-500.0,0.00013972,2]
[335806565,1724497861172,-500.0,0.00013972,2]
[335806566,1724497861181,-2036.61,0.00013972,2]
[335806567,1724497861191,-2078.62,0.00013972,2]
[335806568,1724497861201,-1210.89,0.00013972,2]
[335806569,1724497861210,-4434.89,0.00013972,2]
[335806570,1724497861219,-500.0,0.00013972,2]
[335806571,1724497861230,-185.674472,0.00013972,2]
[335806572,1724497861240,-185.674472,0.00013972,2]
[335806573,1724497861250,-185.674472,0.00013972,2]
[335806574,1724497861260,-500.0,0.00013972,2]
[335806575,1724497861269,-3290.44,0.00013972,2]
[335806576,1724497861279,-1382.83,0.00013972,2]
[335806577,1724497861288,-1025.031645,0.00013972,2]
[335806578,1724497861297,-185.674472,0.00013972,2]
[335806579,1724497861306,-1025.031645,0.00013972,2]
[335806580,1724497861316,-185.674472,0.00013972,2]
[335806581,1724497861326,-1025.031645,0.00013972,2]
[335806582,1724497861336,-500.0,0.00013972,2]
[335806583,1724497861345,-185.674472,0.00013972,2]
[335806584,1724497861355,-1025.031645,0.00013972,2]
[335806585,1724497861365,-1025.031645,0.00013972,2]
[335806586,1724497861375,-1025.031645,0.00013972,2]
[335806587,1724497861384,-280.20519879,0.00013972,2]
[335806588,1724497861394,-500.0,0.00013972,2]
[335806589,1724497861404,-500.0,0.00013972,2]
[335806590,1724497861413,-500.0,0.00013972,2]
[335806591,1724497861423,-500.0,0.00013972,2]
[335806592,1724497861432,-743.91,0.00013972,2]
[335806593,1724497861442,-5819.13,0.00013972,2]
[335806594,1724497861452,-298.95432508,0.00013972,2]
[335806595,1724497861462,-826.3,0.00013972,2]
[335806596,1724497861473,-500.0,0.00013972,2]
[335806597,1724497861483,-500.0,0.00013972,2]
[335806598,1724497861504,-500.0,0.00013972,2]
[335806599,1724497861514,-500.0,0.00013972,2]
[335806600,1724497861523,-503.712384,0.00013972,2]
[335806601,1724497861533,-500.0,0.00013972,2]
[335806602,1724497861542,-503.712384,0.00013972,2]
[335806603,1724497861552,-263.14500142,0.00013972,2]
[335806604,1724497861562,-503.712384,0.00013972,2]
[335806605,1724497861572,-500.0,0.00013972,2]
[335806606,1724497861581,-500.0,0.00013972,2]
[335806607,1724497861591,-503.712384,0.00013972,2]
[335806608,1724497861600,-503.712384,0.00013972,2]
[335806609,1724497861610,-500.0,0.00013972,2]
[335806610,1724497861620,-500.0,0.00013972,2]
[335806611,1724497861630,-503.712384,0.00013972,2]
[335806612,1724497861639,-12829.19,0.00013972,2]
[335806613,1724497861649,-500.0,0.00013972,2]
[335806614,1724497861659,-500.0,0.00013972,2]
[335806615,1724497861669,-664.43,0.00013972,2]
[335806616,1724497861678,-3400.33,0.00013972,2]
[335806617,1724497861689,-2000.36,0.00013972,2]
[335806618,1724497861699,-1436.54,0.00013972,2]
[335806619,1724497861709,-500.0,0.00013972,2]
[335806620,1724497861718,-3569.12,0.00013972,2]
[335806621,1724497861728,-847.95,0.00013972,2]
[335806622,1724497861737,-500.0,0.00013972,2]
[335806623,1724497861747,-2019.18,0.00013972,2]
[335806624,1724497861757,-1650.66,0.00013972,2]
[335806625,1724497861766,-500.0,0.00013972,2]
[335806626,1724497861776,-6830.25,0.00013972,2]
[335806627,1724497861786,-930.07,0.00013972,2]
[335806628,1724497861795,-550.288244,0.00013972,2]
[335806629,1724497861805,-550.288244,0.00013972,2]
[335806630,1724497861815,-1647.92,0.00013972,2]
[335806631,1724497861825,-611.61745047,0.00013972,2]
[335806632,1724497861835,-500.0,0.00013972,2]
[335806633,1724497861845,-550.288244,0.00013972,2]
[335806634,1724497861857,-383.672176,0.00013972,2]
[335806635,1724497861867,-550.288244,0.00013972,2]
[335806636,1724497861877,-383.672176,0.00013972,2]
[335806637,1724497861887,-550.288244,0.00013972,2]
[335806638,1724497861897,-383.672176,0.00013972,2]
[335806639,1724497861907,-550.288244,0.00013972,2]
[335806640,1724497861918,-959.92,0.00013972,2]
[335806641,1724497861931,-503.73193649,0.00013972,2]
[335806642,1724497861941,-383.672176,0.00013972,2]
[335806643,1724497861951,-383.672176,0.00013972,2]
[335806644,1724497861961,-383.672176,0.00013972,2]
[335806645,1724497861971,-958.1,0.00013972,2]
[335806646,1724497861981,-613.98,0.00013972,2]
[335806647,1724497861996,-2333.82,0.00013972,2]
[335806648,1724497862006,-500.0,0.00013972,2]
[335806649,1724497862015,-1175.05,0.00013972,2]
[335806650,1724497862025,-503.31442808,0.00013972,2]
[335806651,1724497862037,-500.0,0.00013972,2]
[335806652,1724497862048,-2022.3,0.00013972,2]
[335806653,1724497862063,-1081.53,0.00013972,2]
[335806654,1724497862084,-500.89536007,0.00013972,2]
[335806655,1724497862102,-1203.403131,0.00013972,2]
[335806656,1724497862126,-1203.403131,0.00013972,2]
[335806657,1724497862142,-1203.403131,0.00013972,2]
[335806658,1724497862161,-614.49,0.00013972,2]
[335806659,1724497862182,-5203.28,0.00013972,2]
[335806660,1724497862202,-1187.17,0.00013972,2]
[335806661,1724497862221,-1203.403131,0.00013972,2]
[335806662,1724497862242,-818.66,0.00013972,2]
[335806663,1724497862262,-1203.403131,0.00013972,2]
[335806664,1724497862277,-1203.403131,0.00013972,2]
[335806665,1724497862297,-2112.81825,0.00013972,2]
[335806666,1724497862310,-2112.81825,0.00013972,2]
[335806667,1724497862327,-2112.81825,0.00013972,2]
[335806668,1724497862342,-500.0,0.00013972,2]
[335806669,1724497862357,-500.0,0.00013972,2]
[335806670,1724497862374,-2112.81825,0.00013972,2]
[335806671,1724497862393,-2112.81825,0.00013972,2]
[335806672,1724497862411,-2112.81825,0.00013972,2]
[335806673,1724497862429,-672.76,0.00013972,2]
[335806674,1724497862446,-3583.17,0.00013972,2]
[335806675,1724497862463,-500.0,0.00013972,2]
[335806676,1724497862479,-752.51,0.00013972,2]
[335806677,1724497862495,-504.04700606,0.00013972,2]
[335806678,1724497862510,-151.0,0.00013972,2]
[335806679,1724497862525,-622.49,0.00013972,2]
[335806680,1724497862540,-151.0,0.00013972,2]
[335806681,1724497862556,-151.0,0.00013972,2]
[335806682,1724497862573,-151.0,0.00013972,2]
[335806683,1724497862589,-501.11184243,0.00013972,2]
[335806684,1724497862604,-554.94,0.00013972,2]
[335806685,1724497862621,-3166.92,0.00013972,2]
[335806686,1724497862638,-500.0,0.00013972,2]
[335806687,1724497862655,-500.0,0.00013972,2]
[335806688,1724497862672,-151.0,0.00013972,2]
[335806689,1724497862688,-241.227001,0.00013972,2]
[335806690,1724497862703,-863.78,0.00013972,2]
[335806691,1724497862719,-10530.69,0.00013972,2]
[335806692,1724497862739,-500.0,0.00013972,2]
[335806693,1724497862755,-500.0,0.00013972,2]
[335806694,1724497862770,-3246.25,0.00013972,2]
[335806695,1724497862786,-795.26,0.00013972,2]
[335806696,1724497862801,-2081.41,0.00013972,2]
[335806697,1724497862815,-902.98,0.00013972,2]
[335806698,1724497862830,-500.0,0.00013972,2]
[335806699,1724497862845,-984.79,0.00013972,2]
[335806700,1724497862864,-500.0,0.00013972,2]
[335806701,1724497862879,-500.0,0.00013972,2]
[335806702,1724497862896,-658.58,0.00013972,2]
[335806703,1724497862913,-8756.98,0.00013972,2]
[335806704,1724497862929,-656.67,0.00013972,2]
[335806705,1724497862944,-500.0,0.00013972,2]
[335806706,1724497862960,-500.0,0.00013972,2]
[335806707,1724497862975,-515.18274963,0.00013972,2]
[335806708,1724497862990,-5323.6,0.00013972,2]
[335806709,1724497863005,-500.0,0.00013972,2]
[335806710,1724497863021,-1094.72,0.00013972,2]
[335806711,1724497863037,-500.0,0.00013972,2]
[335806712,1724497863054,-896.17,0.00013972,2]
[335806713,1724497863065,-500.0,0.00013972,2]
[335806714,1724497863075,-500.0,0.00013972,2]
[335806715,1724497863085,-500.0,0.00013972,2]
[335806716,1724497863095,-785.81,0.00013972,2]
[335806717,1724497863105,-502.23568228,0.00013972,2]
[335806718,1724497863115,-768.49,0.00013972,2]
[335806719,1724497863125,-151.0,0.00013972,2]
[335806720,1724497863135,-500.0,0.00013972,2]
[335806721,1724497863145,-222.848774,0.00013972,2]
[335806722,1724497863155,-500.0,0.00013972,2]
[335806723,1724497863166,-1127.190984,0.00013972,2]
[335806724,1724497863175,-1127.190984,0.00013972,2]
[335806725,1724497863185,-1127.190984,0.00013972,2]
[335806726,1724497863195,-1127.190984,0.00013972,2]
[335806727,1724497863205,-2435.42,0.00013972,2]
[335806728,1724497863214,-500.0,0.00013972,2]
[335806729,1724497863224,-513.99772868,0.00013972,2]
[335806730,1724497863234,-500.0,0.00013972,2]
[335806731,1724497863244,-1127.190984,0.00013972,2]
[335806732,1724497863254,-1127.190984,0.00013972,2]
[335806733,1724497863264,-2225.64,0.00013972,2]
[335806734,1724497863274,-1127.190984,0.00013972,2]
[335806735,1724497863284,-1127.190984,0.00013972,2]
[335806736,1724497863295,-995.99,0.00013972,2]
[335806737,1724497863304,-500.0,0.00013972,2]
[335806738,1724497863314,-2818.22,0.00013972,2]
[335806739,1724497863324,-874.46,0.00013972,2]
[335806740,1724497863334,-1932.67,0.00013972,2]
[335806741,1724497863344,-500.0,0.00013972,2]
[335806742,1724497863713,-719.46,0.00013972,2]
[335806743,1724497863735,-500.0,0.00013972,2]
[335806744,1724497863747,-5268.41,0.00013972,2]
[335806745,1724497863757,-500.0,0.00013972,2]
[335806746,1724497863767,-577.65,0.00013972,2]
[335806747,1724497863777,-500.0,0.00013972,2]
[335806748,1724497863787,-500.83769805,0.00013972,2]
[335806749,1724497863798,-500.0,0.00013972,2]
[335806750,1724497863810,-500.0,0.00013972,2]
[335806751,1724497863821,-500.0,0.00013972,2]
[335806752,1724497863831,-1527.42,0.00013972,2]
[335806753,1724497863841,-500.0,0.00013972,2]
[335806754,1724497863856,-9468.33,0.00013972,2]
[335806755,1724497863866,-1859.759925,0.00013972,2]
[335806756,1724497863877,-500.0,0.00013972,2]
[335806757,1724497863888,-1859.759925,0.00013972,2]
[335806758,1724497863898,-1859.759925,0.00013972,2]
[335806759,1724497863909,-1859.759925,0.00013972,2]
[335806760,1724497863919,-1859.759925,0.00013972,2]
[335806761,1724497863932,-1859.759925,0.00013972,2]
[335806762,1724497863942,-540.37,0.00013972,2]
[335806763,1724497863953,-1859.759925,0.00013972,2]
[335806764,1724497863963,-1859.759925,0.00013972,2]
[335806765,1724497863973,-500.0,0.00013972,2]
[335806766,1724497863984,-4692.62,0.00013972,2]
[335806767,1724497863994,-690.27,0.00013972,2]
[335806768,1724497864005,-500.0,0.00013972,2]
[335806769,1724497864014,-1031.55,0.00013972,2]
[335806770,1724497864024,-500.0,0.00013972,2]
[335806771,1724497864034,-500.0,0.00013972,2]
[335806772,1724497864044,-1500.75,0.00013972,2]
[335806773,1724497864054,-500.0,0.00013972,2]
[335806774,1724497864064,-500.0,0.00013972,2]
[335806775,1724497864074,-500.0,0.00013972,2]
[335806776,1724497864084,-734.16,0.00013972,2]
[335806777,1724497864094,-5556.42,0.00013972,2]
[335806778,1724497864103,-914.12,0.00013972,2]
[335806779,1724497864113,-151.398704,0.00013972,2]
[335806780,1724497864122,-1521.04,0.00013972,2]
[335806781,1724497864132,-500.0,0.00013972,2]
[335806782,1724497864142,-2945.52,0.00013972,2]
[335806783,1724497864152,-500.0,0.00013972,2]
[335806784,1724497864162,-756.7,0.00013972,2]
[335806785,1724497864171,-2951.09,0.00013972,2]
[335806786,1724497864181,-1233.71,0.00013972,2]
[335806787,1724497864190,-3170.26,0.00013972,2]
[335806788,1724497864199,-1275.74,0.00013972,2]
[335806789,1724497864209,-500.0,0.00013972,2]
[335806790,1724497864218,-622.11,0.00013972,2]
[335806791,1724497864228,-500.0,0.00013972,2]
[335806792,1724497864238,-2173.9,0.00013972,2]
[335806793,1724497864248,-2070.83,0.00013972,2]
[335806794,1724497864258,-500.0,0.00013972,2]
[335806795,1724497864267,-500.0,0.00013972,2]
[335806796,1724497864277,-500.0,0.00013972,2]
[335806797,1724497864286,-1066.79,0.00013972,2]
[335806798,1724497864296,-3010.9,0.00013972,2]
[335806799,1724497864306,-14625.71,0.00013972,2]
[335806800,1724497864315,-500.0,0.00013972,2]
[335806801,1724497864326,-500.0,0.00013972,2]
[335806802,1724497864336,-500.0,0.00013972,2]
[335806803,1724497864345,-1713.94,0.00013972,2]
[335806804,1724497864354,-500.0,0.00013972,2]
[335806805,1724497864364,-502.29850537,0.00013972,2]
[335806806,1724497864374,-987.62,0.00013972,2]
[335806807,1724497864383,-500.0,0.00013972,2]
[335806808,1724497864393,-2236.75,0.00013972,2]
[335806809,1724497864402,-636.55,0.00013972,2]
[335806810,1724497864411,-500.0,0.00013972,2]
[335806811,1724497864420,-4869.48,0.00013972,2]
[335806812,1724497864429,-500.0,0.00013972,2]
[335806813,1724497864439,-20705.19,0.00013972,2]
[335806814,1724497864450,-1813.74,0.00013972,2]
[335806815,1724497864460,-2405.61,0.00013972,2]
[335806816,1724497864470,-151.0,0.00013972,2]
[335806817,1724497864482,-151.0,0.00013972,2]
[335806818,1724497864496,-581.33552731,0.00013972,2]
[335806819,1724497864507,-1926.72,0.00013972,2]
[335806820,1724497864516,-151.0,0.00013972,2]
[335806821,1724497864526,-151.0,0.00013972,2]
[335806822,1724497864536,-2428.33,0.00013972,2]
[335806823,1724497864545,-604.67,0.00013972,2]
[335806824,1724497864555,-500.0,0.00013972,2]
[335806825,1724497864564,-3369.60486,0.00013972,2]
[335806826,1724497864574,-500.0,0.00013972,2]
[335806827,1724497864583,-3369.60486,0.00013972,2]
[335806828,1724497864592,-3369.60486,0.00013972,2]
[335806829,1724497864601,-3369.60486,0.00013972,2]
[335806830,1724497864610,-543.85848,0.00013972,2]
[335806831,1724497864620,-543.85848,0.00013972,2]
[335806832,1724497864630,-3369.60486,0.00013972,2]
[335806833,1724497864639,-543.85848,0.00013972,2]
[335806834,1724497864649,-3369.60486,0.00013972,2]
[335806835,1724497864659,-543.85848,0.00013972,2]
[335806836,1724497864668,-3369.60486,0.00013972,2]
[335806837,1724497864679,-3369.60486,0.00013972,2]
[335806838,1724497864688,-3453.135393,0.00013972,2]
[335806839,1724497864699,-3509.98,0.00013972,2]
[335806840,1724497864709,-3453.135393,0.00013972,2]
[335806841,1724497864719,-3453.135393,0.00013972,2]
[335806842,1724497864729,-772.08,0.00013972,2]
[335806843,1724497864739,-3453.135393,0.00013972,2]
[335806844,1724497864749,-500.0,0.00013972,2]
[335806845,1724497864758,-150.843,0.00013972,2]
[335806846,1724497864767,-150.305,0.00013972,2]
[335806847,1724497864776,-150.173,0.00013972,2]
[335806848,1724497864786,-262.127,0.00013972,2]
[335806849,1724497864795,-151.919,0.00013972,2]
[335806850,1724497864804,-522.0,0.00013972,2]
[335806851,1724497864813,-150.0,0.00013973,2]
[335806852,1724497864823,-150.0,0.00013973,2]
[335806853,1724497864832,-1000.0,0.00014,14]
[335806854,1724497864841,-747.09366374,0.00014,3]
[335806855,1724497864853,-154.71377951,0.00014,2]
[335806856,1724497864862,-597.33206656,0.00014,4]
[335806857,1724497864871,-28056.2687807,0.00014,2]
[335806858,1724497864881,-151.0,0.00014,2]
[335806859,1724497864890,-234.144972,0.00014,2]
[335806860,1724497864901,-225.714086,0.00014,2]
[335806861,1724497864910,-225.714086,0.00014,2]
[335806862,1724497864918,-204.026499,0.00014,2]
[335806863,1724497864929,-204.026499,0.00014,2]
[335806864,1724497864938,-151.0,0.00014,2]
[335806865,1724497864947,-1078.556486,0.00014,2]
[335806866,1724497864956,-1078.556486,0.00014,2]
[335806867,1724497864966,-221.255046,0.00014,2]
[335806868,1724497864976,-221.255046,0.00014,2]
[335806869,1724497864985,-197.123887,0.00014,2]
[335806870,1724497865005,-3008.009302,0.00014,2]
[335806871,1724497865016,-197.123887,0.00014,2]
[335806872,1724497865025,-3008.009302,0.00014,2]
[335806873,1724497865034,-958.854083,0.00014,2]
[335806874,1724497865043,-958.854083,0.00014,2]
[335806875,1724497865052,-280.166105,0.00014,2]
[335806876,1724497865061,-280.166105,0.00014,2]
[335806877,1724497865070,-3592.176796,0.00014,2]
[335806878,1724497865080,-3592.176796,0.00014,2]
[335806879,1724497865089,-185.674472,0.00014,2]
[335806880,1724497865099,-1025.031645,0.00014,2]
[335806881,1724497865108,-185.674472,0.00014,2]
[335806882,1724497865117,-1025.031645,0.00014,2]
[335806883,1724497865126,-503.712384,0.00014,2]
[335806884,1724497865135,-503.712384,0.00014,2]
[335806885,1724497865145,-550.288244,0.00014,2]
[335806886,1724497865154,-383.672176,0.00014,2]
[335806887,1724497865163,-550.288244,0.00014,2]
[335806888,1724497865173,-383.672176,0.00014,2]
[335806889,1724497865183,-1203.403131,0.00014,2]
[335806890,1724497865192,-1203.403131,0.00014,2]
[335806891,1724497865202,-2112.81825,0.00014,2]
[335806892,1724497865212,-2112.81825,0.00014,2]
[335806893,1724497865221,-11170.11557939,0.00014,3]
[335806894,1724497865231,-153.0,0.00014028,2]
[335806895,1724497865240,-153.0,0.00014028,2]
[335806896,1724497865249,-153.0,0.00014028,2]
[335806897,1724497865259,-153.0,0.00014028,2]
[335806898,1724497865268,-153.0,0.00014028,2]
[335806899,1724497865278,-487.90135701,0.00014032,2]
[335806900,1724497865287,-604.0,0.000141,2]
[335806901,1724497865296,-1032.37120902,0.00014104,2]
[335806902,1724497865305,-150.0,0.00014104,2]
[335806903,1724497865315,-6372.053,0.00014104,2]
[335806904,1724497865325,-535.188391,0.00014121,2]
[335806905,1724497865334,-1000.0,0.00014121,2]
[335806906,1724497865343,-449.97377135,0.00014121,2]
[335806907,1724497865352,-500.0,0.00014121,2]
[335806908,1724497865362,-500.0,0.00014121,2]
[335806909,1724497865372,-530.40322866,0.00014221,2]
[335806910,1724497865382,-1000.0,0.00014221,2]
[335806911,1724497865391,-1000.0,0.00014221,2]
[335806912,1724497865400,-603.39053838,0.00014221,2]
[335806913,1724497865409,-151.0,0.00014221,2]
[335806914,1724497865420,-198.399625,0.00014221,2]
[335806915,1724497865429,-151.0,0.00014221,2]
[335806916,1724497865438,-198.399625,0.00014221,2]
[335806917,1724497865448,-215.789927,0.00014221,2]
[335806918,1724497865459,-682.195671,0.00014221,2]
[335806919,1724497865469,-682.195671,0.00014221,2]
[335806920,1724497865478,-4862.69940387,0.00014245,2]
[335806921,1724497865487,-813.56,0.00014246,2]
[335806922,1724497865500,-151.0,0.00014246,2]
[335806923,1724497865510,-151.0,0.00014246,2]
[335806924,1724497865519,-151.0,0.00014246,2]
[335806925,1724497865529,-151.0,0.00014246,2]
[335806926,1724497865538,-259.269834,0.00014246,2]
[335806927,1724497865547,-151.0,0.00014246,2]
[335806928,1724497865557,-151.0,0.00014246,2]
[335806929,1724497865566,-1508.43,0.00014246,2]
[335806930,1724497865576,-706.63,0.00014246,2]
[335806931,1724497865585,-500.0,0.00014246,2]
[335806932,1724497865594,-151.0,0.00014246,2]
[335806933,1724497865604,-271.219621,0.00014246,2]
[335806934,1724497865613,-500.0,0.00014246,2]
[335806935,1724497865623,-500.0,0.00014246,2]
[335806936,1724497865633,-500.0,0.00014246,2]
[335806937,1724497865643,-516.71,0.00014246,2]
[335806938,1724497865653,-500.0,0.00014246,2]
[335806939,1724497865664,-1094.89,0.00014246,2]
[335806940,1724497865673,-727.18,0.00014246,2]
[335806941,1724497865683,-500.0,0.00014246,2]
[335806942,1724497865692,-1305.61,0.00014246,2]
[335806943,1724497865702,-821.97,0.00014246,2]
[335806944,1724497865711,-718.13,0.00014246,2]
[335806945,1724497865721,-181.06987993,0.00014246,2]
[335806946,1724497865730,-1360.88,0.00014246,2]
[335806947,1724497865741,-526.65,0.00014246,2]
[335806948,1724497865751,-151.0,0.00014246,2]
[335806949,1724497865760,-151.0,0.00014246,2]
[335806950,1724497865769,-151.0,0.00014246,2]
[335806951,1724497865778,-500.0,0.00014246,2]